fUSD/lending_fUSD_20240720
["ID","MTS","AMOUNT","RATE_DAILY","PERIOD"]
[332761074,1721507439850,-210.68453072,0.000139,2]
[332761076,1721507439860,-168.95488333,0.000139,2]
[332761078,1721507439869,-186.28548078,0.000139,2]
[332761080,1721507439879,-5295.78062687,0.000139,2]
[332761082,1721507439889,-150.0,0.00013903,2]
[332761084,1721507439898,-150.0,0.00013907,2]
[332761086,1721507439908,-150.0,0.0001391,2]
[332761089,1721507439920,-150.0,0.00013912,2]
[332761090,1721507439930,-150.0,0.00013919,2]
[332761092,1721507439940,-150.0,0.00013919,2]
[332761095,1721507439951,-150.0,0.00013921,2]
[332761097,1721507439962,-150.0,0.00013924,2]
[332761099,1721507439972,-150.0,0.00013924,2]
[332761101,1721507439982,-150.0,0.00013924,2]
[332761103,1721507439992,-150.0,0.00013924,2]
[332761105,1721507440002,-150.0,0.00013925,2]
[332761107,1721507440014,-150.0,0.0001393,2]
[332761109,1721507440025,-150.0,0.0001393,2]
[332761111,1721507440035,-150.0,0.00013933,2]
[332761114,1721507440045,-150.0,0.00013937,2]
[332761116,1721507440056,-150.0,0.00013937,2]
[332761118,1721507440065,-150.0,0.00013942,2]
[332761120,1721507440074,-150.0,0.00013943,2]
[332761121,1721507440083,-150.0,0.00013943,2]
[332761124,1721507440094,-150.0,0.00013944,2]
[332761126,1721507440103,-429.74,0.00013944,3]
[332761128,1721507440113,-150.0,0.00013947,2]
[332761130,1721507440124,-150.0,0.00013949,2]
[332761132,1721507440133,-150.0,0.00013951,2]
[332761134,1721507440144,-150.0,0.00013954,2]
[332761136,1721507440154,-150.0,0.00013956,2]
[332761138,1721507440164,-150.0,0.00013958,2]
[332761140,1721507440173,-150.0,0.00013963,2]
[332761142,1721507440182,-150.0,0.00013967,2]
[332761144,1721507440192,-150.0,0.00013967,2]
[332761146,1721507440201,-150.0,0.00013971,2]
[332761148,1721507440211,-235.26,0.00013973,2]
[332761150,1721507440220,-635.56,0.00013973,2]
[332761152,1721507440231,-150.0,0.00013975,2]
[332761154,1721507440240,-150.0,0.00013975,2]
[332761156,1721507440249,-150.0,0.00013976,2]
[332761158,1721507440259,-150.0,0.00013977,2]
[332761160,1721507440271,-196.81545757,0.00013986,2]
[332761162,1721507440281,-196.81545757,0.00013986,2]
[332761164,1721507440291,-364.91913643,0.00013986,2]
[332761167,1721507440300,-150.0,0.00013987,2]
[332761169,1721507440311,-150.0,0.00013987,2]
[332761170,1721507440320,-150.0,0.00013989,2]
[332761172,1721507440330,-155.0,0.00013989,2]
[332761174,1721507440340,-203.91255937,0.00013989,2]
[332761177,1721507440351,-150.0,0.00013992,2]
[332761178,1721507440360,-150.0,0.00013996,2]
[332761180,1721507440370,-254.68905289,0.00013996,2]
[332761182,1721507440379,-2103.34844621,0.00014,2]
[332761246,1721507440959,-1641.30252,0.00014,2]
[332761248,1721507440973,-31402.57782437,0.00014,2]
[332761250,1721507440986,-425.11069981,0.00014,2]
[332761256,1721507441029,-43939.50864405,0.00014,2]
[332761259,1721507441042,-362.572002,0.00014,2]
[332761262,1721507441064,-45081.48907596,0.00014,2]
[332761264,1721507441075,-728.05842579,0.00014,2]
[332761266,1721507441086,-861.78488582,0.00014,2]
[332761270,1721507441109,-2156.45869733,0.00014,2]
[332761273,1721507441128,-5819.04086093,0.00014,2]
[332761275,1721507441139,-987.92993162,0.00014,2]
[332761280,1721507441170,-12666.04355414,0.00014,2]
[332761282,1721507441181,-694.15684156,0.00014,2]
[332761476,1721507442891,-322.20086103,0.000139,2]
[332761477,1721507442900,-425948.96295622,0.00014,2]
[332761740,1721507445608,-13415.33050121,0.00014,2]
[332763859,1721507944828,312.66,0.00011231,2]
[332763862,1721508000149,43658.26153277,0.00011231,2]
[332763863,1721508455890,307.24,0.00010901,2]
[332763864,1721508485581,1376.15606929,0.00011959,2]
[332763873,1721508631812,-162.14215494,0.00012481,2]
[332763874,1721508631822,-213.25913164,0.00012581,2]
[332763875,1721508631832,-155.0,0.00012613,2]
[332763876,1721508631842,-750.0,0.00012681,2]
[332763877,1721508631851,-186.96,0.00012798,2]
[332763878,1721508631860,-300.0,0.00012834,2]
[332763879,1721508631870,-702.88168839,0.00012835,2]
[332763880,1721508631882,-525.7141499,0.00012835,2]
[332763881,1721508631892,-635.1,0.00012835,2]
[332763882,1721508631904,-1528.35103245,0.00012835,2]
[332763883,1721508631915,-451.63886766,0.00012835,2]
[332763884,1721508631927,-263.47322908,0.00012835,2]
[332763885,1721508631938,-1973.22629204,0.00012835,2]
[332763886,1721508631950,-2613.50210701,0.00012835,2]
[332763887,1721508631961,-615.77052,0.00012835,2]
[332763888,1721508631972,-496.77,0.00012835,2]
[332763889,1721508631983,-521.44331218,0.00012835,2]
[332763890,1721508632000,-819.50880129,0.00012835,2]
[332763891,1721508632010,-1000.0,0.00013135,2]
[332763892,1721508632019,-307.24,0.00013165,2]
[332763893,1721508632028,-174.85149445,0.00013199,2]
[332763894,1721508632038,-2876.90245145,0.00013199,2]
[332763896,1721508632048,-174.85149445,0.00013199,2]
[332763898,1721508632058,-2133.59332481,0.00013297,2]
[332763900,1721508632067,-10308.1959,0.000133,2]
[332763902,1721508632077,-379.38490626,0.0001331,2]
[332763903,1721508632086,-1706.01053776,0.0001331,2]
[332763905,1721508632095,-200.0,0.000134,5]
[332763907,1721508632104,-3761.0,0.00013483,2]
[332763909,1721508632114,-155.0,0.00013499,2]
[332763911,1721508632124,-155.16204596,0.0001351,2]
[332763913,1721508632134,-281.20056531,0.00013561,2]
[332763915,1721508632143,-150.0,0.00013612,2]
[332763917,1721508632153,-999.99,0.00013613,2]
[332763919,1721508632162,-411.0,0.00013699,2]
[332763921,1721508632171,-150.0,0.00013725,2]
[332763923,1721508632181,-150.0,0.00013727,2]
[332763924,1721508632190,-150.0,0.00013728,2]
[332763926,1721508632200,-150.0,0.0001373,2]
[332763929,1721508632209,-150.0,0.00013732,2]
[332763930,1721508632219,-150.0,0.00013738,2]
[332763931,1721508632228,-150.0,0.00013738,2]
[332763932,1721508632237,-150.0,0.0001374,2]
[332763933,1721508632246,-150.0,0.00013741,2]
[332763934,1721508632256,-150.0,0.00013741,2]
[332763935,1721508632266,-150.0,0.00013742,2]
[332763936,1721508632276,-150.0,0.00013748,2]
[332763937,1721508632285,-150.0,0.00013755,2]
[332763938,1721508632296,-150.0,0.00013755,2]
[332763939,1721508632305,-150.0,0.00013758,2]
[332763940,1721508632316,-150.0,0.00013758,2]
[332763941,1721508632325,-150.0,0.00013759,2]
[332763942,1721508632335,-150.0,0.00013759,2]
[332763943,1721508632344,-150.0,0.00013763,2]
[332763944,1721508632354,-150.0,0.00013764,2]
[332763945,1721508632363,-150.0,0.00013765,2]
[332763946,1721508632373,-150.0,0.00013766,2]
[332763947,1721508632382,-150.0,0.00013767,2]
[332763948,1721508632391,-150.0,0.00013768,2]
[332763949,1721508632401,-150.0,0.00013768,2]
[332763950,1721508632410,-150.0,0.00013771,2]
[332763951,1721508632420,-150.0,0.00013771,2]
[332763952,1721508632429,-150.0,0.00013774,2]
[332763953,1721508632438,-150.0,0.00013776,2]
[332763954,1721508632447,-150.0,0.00013779,2]
[332763955,1721508632456,-150.0,0.00013779,2]
[332763956,1721508632466,-150.0,0.00013784,2]
[332763957,1721508632475,-150.0,0.00013791,2]
[332763958,1721508632484,-150.0,0.00013793,2]
[332763959,1721508632494,-150.0,0.000138,2]
[332763960,1721508632503,-150.0,0.00013806,2]
[332763961,1721508632512,-150.0,0.00013815,2]
[332763962,1721508632521,-150.0,0.00013815,2]
[332763963,1721508632531,-150.0,0.00013818,2]
[332763964,1721508632540,-150.0,0.00013818,2]
[332763965,1721508632549,-150.0,0.00013819,2]
[332763966,1721508632558,-150.0,0.0001382,2]
[332763967,1721508632567,-150.0,0.0001382,2]
[332763968,1721508632576,-150.0,0.0001382,2]
[332763969,1721508632585,-150.0,0.00013822,2]
[332763970,1721508632594,-150.0,0.00013828,2]
[332763971,1721508632603,-150.0,0.00013832,2]
[332763972,1721508632613,-150.0,0.00013839,2]
[332763973,1721508632623,-150.0,0.0001384,2]
[332763974,1721508632632,-150.0,0.00013853,2]
[332763975,1721508632641,-150.0,0.0001386,2]
[332763976,1721508632650,-3000.0,0.0001386,2]
[332763977,1721508632659,-150.0,0.00013861,2]
[332763978,1721508632669,-150.0,0.00013864,2]
[332763979,1721508632678,-150.0,0.00013864,2]
[332763980,1721508632687,-150.0,0.00013866,2]
[332763981,1721508632696,-150.0,0.00013872,2]
[332763982,1721508632708,-150.0,0.00013873,2]
[332763983,1721508632718,-150.0,0.00013874,2]
[332763984,1721508632727,-150.0,0.00013876,2]
[332763985,1721508632737,-150.0,0.00013881,2]
[332763986,1721508632747,-150.0,0.00013886,2]
[332763987,1721508632756,-150.0,0.00013887,2]
[332763988,1721508632765,-150.0,0.00013888,2]
[332763989,1721508632874,-178.29,0.0001389,2]
[332763990,1721508632946,-165.80379858,0.00013892,2]
[332763991,1721508632956,-150.0,0.00013894,2]
[332763992,1721508632966,-150.0,0.00013895,2]
[332763993,1721508632975,-150.0,0.00013895,2]
[332763994,1721508632984,-165.80379856,0.00013896,2]
[332763995,1721508632994,-169.84462218,0.000139,2]
[332763996,1721508633003,-852.0,0.000139,2]
[332763997,1721508633012,-1000.0,0.000139,2]
[332763998,1721508633022,-1000.0,0.000139,2]
[332763999,1721508633031,-1000.0,0.000139,2]
[332764000,1721508633040,-1000.0,0.000139,2]
[332764001,1721508633050,-165.80379856,0.000139,2]
[332764002,1721508633059,-162.9997957,0.000139,2]
[332764003,1721508633068,-633.46582986,0.000139,2]
[332764004,1721508633077,-9643.97619795,0.000139,2]
[332764005,1721508633086,-961.12133248,0.000139,2]
[332764006,1721508633095,-222.21696831,0.000139,2]
[332764007,1721508633104,-319.68669261,0.000139,2]
[332764008,1721508633114,-150.0,0.00013902,2]
[332764009,1721508633123,-150.0,0.00013904,2]
[332764010,1721508633133,-150.0,0.00013908,2]
[332764011,1721508633143,-150.0,0.00013915,2]
[332764012,1721508633153,-150.0,0.00013924,2]
[332764013,1721508633164,-150.0,0.00013931,2]
[332764014,1721508633174,-150.0,0.00013933,2]
[332764015,1721508633184,-150.0,0.00013933,2]
[332764016,1721508633194,-150.0,0.00013936,2]
[332764017,1721508633204,-150.0,0.0001394,2]
[332764018,1721508633213,-150.0,0.0001394,2]
[332764019,1721508633223,-150.0,0.0001394,2]
[332764020,1721508633232,-150.0,0.00013943,2]
[332764021,1721508633241,-150.0,0.00013945,2]
[332764022,1721508633251,-150.0,0.00013947,2]
[332764023,1721508633261,-150.0,0.00013949,2]
[332764024,1721508633270,-150.0,0.00013949,2]
[332764025,1721508633280,-150.0,0.0001395,2]
[332764026,1721508633290,-150.0,0.00013958,2]
[332764027,1721508633300,-150.0,0.00013958,2]
[332764028,1721508633309,-150.0,0.00013961,2]
[332764029,1721508633319,-150.0,0.00013966,2]
[332764030,1721508633329,-150.0,0.00013967,2]
[332764031,1721508633338,-150.0,0.00013969,2]
[332764032,1721508633347,-268.98,0.00013972,3]
[332764033,1721508633356,-160.92,0.00013973,2]
[332764034,1721508633367,-150.0,0.00013979,2]
[332764035,1721508633378,-150.0,0.0001398,2]
[332764036,1721508633387,-150.0,0.00013982,2]
[332764037,1721508633396,-150.0,0.00013982,2]
[332764038,1721508633406,-150.0,0.00013986,2]
[332764039,1721508633415,-150.0,0.00013986,2]
[332764040,1721508633425,-150.0,0.00013989,2]
[332764041,1721508633435,-368.12250856,0.0001399,2]
[332764042,1721508633444,-368.12250856,0.0001399,2]
[332764043,1721508633454,-368.12250856,0.0001399,2]
[332764044,1721508633464,-150.0,0.00013992,2]
[332764045,1721508633473,-1341.4784455,0.00013996,2]
[332764046,1721508633483,-150.0,0.00013997,2]
[332764047,1721508633493,-1638.90014625,0.00013997,2]
[332764048,1721508633502,-500.0,0.00013999,2]
[332764049,1721508633512,-589.27554805,0.00013999,2]
[332764050,1721508633523,-150.0,0.00013999,2]
[332764051,1721508633532,-150.0,0.00013999,2]
[332764052,1721508633542,-499580.48744069,0.00014,2]
[332764053,1721508633555,-5089.15586786,0.00014,2]
[332764054,1721508633566,-1579.80960355,0.00014,2]
[332764055,1721508633577,-8770.3115774,0.00014,2]
[332764056,1721508633618,-777.495996,0.00014,2]
[332764057,1721508633629,-991.38567962,0.00014,2]
[332764058,1721508633641,-4982.1901667,0.00014,2]
[332764059,1721508633661,-1109.25390774,0.00014,2]
[332764060,1721508633672,-287.37338502,0.00014,2]
[332764062,1721508637766,-282.01011465,0.00013378,2]
[332764063,1721508637778,-335.08803515,0.00013613,2]
[332764064,1721508637787,-298.22289099,0.0001372,2]
[332764065,1721508637798,-150.0,0.00013731,2]
[332764066,1721508637807,-102.24874118,0.0001374,2]
[332764067,1721508637819,-47.75125882,0.0001374,2]
[332764068,1721508637828,-150.0,0.00013741,2]
[332764069,1721508637837,-150.0,0.00013742,2]
[332764070,1721508637847,-150.0,0.00013746,2]
[332764071,1721508637856,-150.0,0.00013749,2]
[332764072,1721508637867,-150.0,0.00013753,2]
[332764073,1721508637876,-150.0,0.00013759,2]
[332764074,1721508637886,-150.0,0.00013766,2]
[332764075,1721508637896,-150.0,0.00013766,2]
[332764076,1721508637906,-150.0,0.00013774,2]
[332764077,1721508637916,-150.0,0.00013775,2]
[332764078,1721508637925,-150.0,0.00013777,2]
[332764079,1721508637935,-150.0,0.0001379,2]
[332764080,1721508637945,-150.0,0.00013791,2]
[332764081,1721508637955,-150.0,0.00013817,2]
[332764082,1721508637965,-150.0,0.00013819,2]
[332764083,1721508637974,-150.0,0.00013828,2]
[332764084,1721508637983,-150.0,0.00013829,2]
[332764085,1721508637993,-150.0,0.00013832,2]
[332764086,1721508638003,-150.0,0.00013836,2]
[332764087,1721508638012,-150.0,0.00013838,2]
[332764088,1721508638022,-150.0,0.00013849,2]
[332764089,1721508638031,-150.0,0.00013851,2]
[332764090,1721508638041,-150.0,0.00013859,2]
[332764091,1721508638051,-150.0,0.00013866,2]
[332764093,1721508638060,-150.0,0.00013866,2]
[332764094,1721508638070,-150.0,0.00013869,2]
[332764095,1721508638079,-150.0,0.00013878,2]
[332764096,1721508638089,-150.0,0.00013894,2]
[332764097,1721508638099,-150.0,0.00013895,2]
[332764098,1721508638109,-150.0,0.00013898,2]
[332764100,1721508638118,-150.0,0.00013922,2]
[332764102,1721508638128,-150.0,0.00013928,2]
[332764104,1721508638138,-150.0,0.00013932,2]
[332764106,1721508638147,-150.0,0.0001395,2]
[332764108,1721508638157,-150.0,0.00013954,2]
[332764110,1721508638168,-150.0,0.00013958,2]
[332764112,1721508638178,-150.0,0.00013959,2]
[332764114,1721508638187,-150.0,0.00013968,2]
[332764116,1721508638196,-150.0,0.00013973,2]
[332764118,1721508638206,-150.0,0.00013975,2]
[332764120,1721508638216,-150.0,0.00013981,2]
[332764122,1721508638225,-150.0,0.00013983,2]
[332764124,1721508638235,-150.0,0.00013985,2]
[332764126,1721508638244,-4540.36701247,0.00014,2]
[332764128,1721508638256,-5213.2416444,0.00014,2]
[332764131,1721508638267,-10057.58,0.00014,2]
[332764133,1721508638278,-3861.57904239,0.00014,2]
[332764135,1721508638289,-324.21597635,0.00014,2]
[332764137,1721508638302,-541.74,0.00014,2]
[332764140,1721508638321,-916.92440523,0.00014,2]
[332764143,1721508638333,-70210.21145951,0.00014,2]
[332764145,1721508638344,-7570.38815316,0.00014,2]
[332764158,1721508638458,-644.0844829,0.00014,2]
[332764160,1721508638469,-442.25,0.00014,2]
[332764162,1721508638480,-307.07755376,0.00014,2]
[332764165,1721508638491,-5139.54579721,0.00014,2]
[332764167,1721508638503,-4852.6012,0.00014,2]
[332764169,1721508638514,-10535.96684458,0.00014,2]
[332764172,1721508638529,-8500.03485,0.00014,2]
[332764174,1721508638540,-954.84912495,0.00014,2]
[332764182,1721508638610,-23996.93107085,0.00014,2]
[332764184,1721508638622,-1631.36205756,0.00014,2]
[332764187,1721508638633,-16175.0,0.00014,2]
[332764189,1721508638644,-1036.27748883,0.00014,2]
[332764191,1721508638655,-761.62285691,0.00014,2]
[332764193,1721508638667,-728.98794065,0.00014,2]
[332764202,1721508638749,-12497.24843964,0.00014,2]
[332764205,1721508638760,-515.28705452,0.00014,2]
[332764207,1721508638771,-1134.70787623,0.00014,2]
[332764309,1721508639800,-24104.6103854,0.00014,2]
[332764310,1721508639859,-2028.38868,0.00014,2]
[332764311,1721508639871,-635.332,0.00014,2]
[332764312,1721508639883,-3482.59104684,0.00014,2]
[332764313,1721508639906,-1620.40557737,0.00014,2]
[332764316,1721508639924,-1319.47895632,0.00014,2]
[332764318,1721508639938,-12055.37265016,0.00014,2]
[332764326,1721508640007,-1079.800005,0.00014,2]
[332764328,1721508640019,-843.15773648,0.00014,2]
[332764331,1721508640039,-503.4787228,0.00014,2]
[332764335,1721508640063,-540.18000005,0.00014,2]
[332764337,1721508640074,-4199.72311746,0.00014,2]
[332764364,1721508640331,-335.2425362,0.00014,2]
[332764366,1721508640342,-353.04500001,0.00014,2]
[332764368,1721508640353,-778.64096614,0.00014,2]
[332764370,1721508640365,-27940.88974367,0.00014,2]
[332764378,1721508640429,-3891.36684221,0.00014,2]
[332764380,1721508640441,-322.85018007,0.00014,2]
[332764630,1721508642807,-630.18302999,0.00014,2]
[332764633,1721508642818,-21011.9297031,0.00014,2]
[332764644,1721508642863,-1224.01061712,0.00014,2]
[332764647,1721508642874,-703.56440743,0.00014,2]
[332764650,1721508642885,-1085.140985,0.00014,2]
[332764661,1721508642982,-297.59077079,0.00014,2]
[332764673,1721508643092,-155.0,0.00012581,2]
[332764675,1721508643102,-6389.29469216,0.00014,2]
[332764677,1721508643114,-8205.81440267,0.00014,2]
[332764681,1721508643138,-17592.58799307,0.00014,2]
[332764683,1721508643152,-67268.84094529,0.00014,2]
[332764686,1721508643164,-276.224985,0.00014,2]
[332764952,1721508645874,-7875.30507897,0.0001386,2]
[332764954,1721508645885,-13670.10512652,0.0001386,2]
[332764956,1721508645896,-891.59999964,0.0001386,2]
[332766832,1721509060715,-600.0,0.0001226,2]
[332766837,1721509142005,276.51,0.00011251,2]
[332766862,1721509731087,262.68,0.00010773,2]
[332766889,1721509831929,-150.00000001,0.000126,2]
[332766891,1721509831940,-250.0,0.00012711,2]
[332766893,1721509831951,-2662.14,0.00012976,2]
[332766894,1721509831961,-150.0,0.00012977,2]
[332766896,1721509831972,-1081.18,0.0001298,2]
[332766898,1721509831982,-25831.05732113,0.00013,2]
[332766899,1721509831991,-300.0,0.00013036,2]
[332766900,1721509832003,-262.68,0.00013037,2]
[332766901,1721509832012,-152.3647633,0.00013087,2]
[332766902,1721509832022,-245.21,0.00013184,2]
[332766903,1721509832031,-711.0,0.000132,3]
[332766904,1721509832041,-156.3645126,0.00013302,2]
[332766905,1721509832050,-4468.62273745,0.00013303,2]
[332766906,1721509832059,-1000.0,0.00013387,2]
[332766907,1721509832068,-1022.4396916,0.00013398,2]
[332766908,1721509832078,-11494.0,0.000134,5]
[332766909,1721509832091,-150.0,0.00013478,2]
[332766910,1721509832100,-648.36921594,0.00013479,2]
[332766911,1721509832110,-5391.8897417,0.0001367,2]
[332766912,1721509832119,-328.8,0.00013699,2]
[332766913,1721509832129,-12171.08281847,0.0001386,2]
[332766914,1721509832139,-7005.0,0.0001386,2]
[332766915,1721509832148,-3000.0,0.0001386,2]
[332766916,1721509832159,-11933.80648438,0.00013888,2]
[332766920,1721509832819,-4519.76758747,0.00013888,2]
[332766923,1721509837994,-17520.7807182,0.00013888,2]
[332766924,1721509838004,-9076.07639205,0.00013888,2]
[332766925,1721509838014,-1000.0,0.0001389,2]
[332766926,1721509838023,-204.84286294,0.00013898,2]
[332766927,1721509838033,-2814.01638508,0.00013899,2]
[332766928,1721509838043,-162.30891768,0.000139,2]
[332766929,1721509838052,-207.92410251,0.000139,2]
[332766930,1721509838061,-8895.68202246,0.000139,2]
[332766931,1721509838071,-221.64557463,0.000139,2]
[332766932,1721509838081,-1552.5975313,0.000139,2]
[332766933,1721509838093,-199.30824592,0.000139,2]
[332766934,1721509838102,-298.52622468,0.000139,2]
[332766935,1721509838112,-1000.0,0.00013973,2]
[332766936,1721509838122,-142007.427508,0.0001398,3]
[332766937,1721509838131,-4458.37371939,0.00013988,3]
[332766938,1721509838140,-35666.9897551,0.0001399,3]
[332766939,1721509838150,-55398.4032459,0.00013998,2]
[332766940,1721509838161,-2861.0581434,0.00013998,2]
[332766941,1721509838171,-4717.5990762,0.00013998,2]
[332766942,1721509838180,-1123.42877866,0.00013999,5]
[332766943,1721509838189,-1123.42877866,0.00013999,5]
[332766944,1721509838199,-1123.42877866,0.00013999,5]
[332766945,1721509838208,-300.0,0.00013999,2]
[332766946,1721509838217,-122836.90908151,0.00014,2]
[332766947,1721509838232,-4774.30490418,0.00014,2]
[332766948,1721509838249,-42167.92804241,0.00014,2]
[332766949,1721509838262,-1500.0,0.00014,2]
[332766951,1721509838292,-909.2521557,0.00014,2]
[332766953,1721509838314,-7034.1452289,0.00014,2]
[332766954,1721509838329,-9133.61009273,0.00014,2]
[332766955,1721509838341,-709.08266212,0.00014,2]
[332767135,1721509840197,-508.4059,0.00014,2]
[332767143,1721509840259,-1915.64373984,0.00014,2]
[332767150,1721509840316,-638.94040044,0.00014,2]
[332767152,1721509840327,-335.16377626,0.00014,2]
[332767158,1721509840375,-659.0752705,0.00014,2]
[332767547,1721509844468,-315.48942614,0.000139,2]
[332767548,1721509844479,-734.08569333,0.00014,2]
[332767550,1721509844516,-328.00238978,0.00014,2]
[332767552,1721509844527,-450152.90055822,0.00014,2]
[332767554,1721509844537,-861028.42009166,0.00014,2]
[332767556,1721509844547,-92660.46655455,0.00014,2]
[332767559,1721509844570,-32621.08850002,0.00014,2]
[332767707,1721509846112,-200.0,0.000135,4]
[332767709,1721509846122,-84597.2303838,0.00014,2]
[332767711,1721509846135,-1052.7904202,0.00014,2]
[332767713,1721509846146,-1578.49314389,0.00014,2]
[332767715,1721509846158,-1531.97375209,0.00014,2]
[332767728,1721509846276,-2058.51376449,0.00014,2]
[332767743,1721509846418,-414.59509072,0.00014,2]
[332767745,1721509846429,-2730.79260783,0.00014,2]
[332767747,1721509846440,-144620.85737227,0.00014,2]
[332767749,1721509846452,-173400.5812,0.00014,2]
[332767751,1721509846463,-4720.59257667,0.00014,2]
[332767753,1721509846472,-162987.8630446,0.00014,2]
[332767755,1721509846484,-33779.72226225,0.00014,2]
[332767757,1721509846495,-95351.55033465,0.00014,2]
[332767759,1721509846506,-35883.40778468,0.00014,2]
[332767767,1721509846579,-32592.01435,0.00014,2]
[332767769,1721509846590,-1014.8698506,0.00014,2]
[332769761,1721510341008,236.41,0.00011033,2]
[332769762,1721510421470,150.0,0.00011033,2]
[332769763,1721510421490,5.0,0.00011033,2]
[332769764,1721510445753,145.0,0.00011033,2]
[332769765,1721510445775,150.0,0.00011033,2]
[332769766,1721510445795,150.0,0.00011033,2]
[332769767,1721510445816,150.0,0.00011033,2]
[332769768,1721510445837,150.0,0.00011033,2]
[332769769,1721510445857,150.0,0.00011033,2]
[332769770,1721510445879,7624.4,0.00011033,2]
[332769771,1721510445906,11837.31080048,0.00011033,2]
[332769772,1721510461209,449.19532507,0.00011033,2]
[332769775,1721510552034,150.0,0.00011033,2]
[332769776,1721510552056,150.0,0.00011033,2]
[332769777,1721510552077,150.0,0.00011033,2]
[332769778,1721510552101,150.0,0.00011033,2]
[332769779,1721510552121,150.0,0.00011033,2]
[332769780,1721510552146,150.0,0.00011033,2]
[332769781,1721510552167,150.0,0.00011033,2]
[332769782,1721510552188,150.0,0.00011033,2]
[332769783,1721510552210,150.0,0.00011033,2]
[332769784,1721510552232,150.0,0.00011033,2]
[332769785,1721510552254,150.0,0.00011033,2]
[332769786,1721510552276,150.0,0.00011033,2]
[332769787,1721510552298,150.0,0.00011033,2]
[332769788,1721510552320,150.0,0.00011033,2]
[332769789,1721510552343,18256.71080048,0.00011033,2]
[332769798,1721510657060,150.0,0.00011033,2]
[332769799,1721510657081,150.0,0.00011033,2]
[332769800,1721510657102,150.0,0.00011033,2]
[332769801,1721510657123,150.0,0.00011033,2]
[332769802,1721510657144,150.0,0.00011033,2]
[332769803,1721510657165,150.0,0.00011033,2]
[332769804,1721510657185,150.0,0.00011033,2]
[332769805,1721510657208,9657.10677345,0.00011033,2]
[332769822,1721510756286,12862.14411947,6.94e-05,2]
[332769823,1721510761531,200.11792725,0.00011943,2]
[332769828,1721510814086,305.0,0.00011943,2]
[332769835,1721510894792,-300.0,0.00012661,2]
[332769836,1721510894814,-1141.674694,0.00012662,2]
[332769837,1721510894835,-157739.46506917,0.00012662,2]
[332769847,1721510937468,155.0,0.00011943,2]
[332769852,1721511031799,249.8,0.00010861,2]
[332769861,1721511032319,-150.0,0.00012599,2]
[332769862,1721511032328,-9615.39715183,0.00012662,2]
[332769863,1721511032338,-6352.49444531,0.00012718,2]
[332769864,1721511032348,-200.0,0.00012778,2]
[332769865,1721511032357,-250.0,0.00012818,2]
[332769866,1721511032367,-300.0,0.00012842,2]
[332769867,1721511032377,-923.01,0.00012843,2]
[332769868,1721511032386,-175.95,0.00012891,2]
[332769869,1721511032396,-150.0,0.00012892,2]
[332769870,1721511032405,-179.36814605,0.00013087,2]
[332769871,1721511032446,-1367.54125336,0.00013087,2]
[332769872,1721511032456,-249.8,0.00013125,2]
[332769873,1721511032466,-186.96,0.00013153,2]
[332769874,1721511032476,-298.22289099,0.00013499,2]
[332769875,1721511032485,-200.0,0.000135,4]
[332769876,1721511032495,-28138.06785565,0.0001358,2]